[Event "Titled Tuesday Blitz March 22 Late 2022"]
[White "Marcziter, Dmitrii"]
[Black "Kokoszczynski, Jan"]
[WhiteFideId "13900765"]
[BlackFideId "1174460"]
[WhiteElo "2155"]
[BlackElo "2163"]
[Result "0-1"]
[Round "01"]
[TimeControl "180+1"]
[Date "2022.03.22"]
[WhiteClock "0:00:47"]
[BlackClock "0:00:58"]

1. d4 {[%clk 0:03:00]}  d5 {[%clk 0:02:58]} 2. c4 {[%clk 0:03:00]}  e6 {[%clk 0:02:57]} 3. Nc3 {[%clk 0:02:59]}  a6 {[%clk 0:02:56]} 4. cxd5 {[%clk 0:02:59]}  exd5 {[%clk 0:02:57]} 5. Qc2 {[%clk 0:02:59]}  c6 {[%clk 0:02:54]} 6. Nf3 {[%clk 0:02:59]}  Nf6 {[%clk 0:02:45]} 7. Bg5 {[%clk 0:02:57]}  Be7 {[%clk 0:02:37]} 8. e3 {[%clk 0:02:57]}  O-O {[%clk 0:02:37]} 9. Bd3 {[%clk 0:02:57]}  h6 {[%clk 0:02:38]} 10. Bh4 {[%clk 0:02:55]}  Ne8 {[%clk 0:02:38]} 11. Bxe7 {[%clk 0:02:53]}  Qxe7 {[%clk 0:02:38]} 12. O-O-O {[%clk 0:02:51]}  Nd6 {[%clk 0:02:37]} 13. Kb1 {[%clk 0:02:51]}  b5 {[%clk 0:02:35]} 14. Ne5 {[%clk 0:02:49]}  Nc4 {[%clk 0:02:31]} 15. e4 {[%clk 0:02:39]}  Nxe5 {[%clk 0:02:29]} 16. dxe5 {[%clk 0:02:38]}  d4 {[%clk 0:02:29]} 17. Ne2 {[%clk 0:02:36]}  c5 {[%clk 0:02:29]} 18. b3 {[%clk 0:02:23]}  Nc6 {[%clk 0:02:13]} 19. f4 {[%clk 0:02:14]}  Nb4 {[%clk 0:02:13]} 20. Qd2 {[%clk 0:02:14]}  Nxd3 {[%clk 0:02:13]} 21. Qxd3 {[%clk 0:02:14]}  c4 {[%clk 0:02:13]} 22. Qxd4 {[%clk 0:02:10]}  cxb3 {[%clk 0:02:13]} 23. axb3 {[%clk 0:02:10]}  Bg4 {[%clk 0:02:13]} 24. Rde1 {[%clk 0:02:07]}  Rfd8 {[%clk 0:02:05]} 25. Qb2 {[%clk 0:02:00]}  Bxe2 {[%clk 0:01:49]} 26. Rxe2 {[%clk 0:02:00]}  a5 {[%clk 0:01:49]} 27. Rd2 {[%clk 0:01:55]}  Qb4 {[%clk 0:01:45]} 28. Rc2 {[%clk 0:01:25]}  Qxe4 {[%clk 0:01:42]} 29. Rf1 {[%clk 0:01:23]}  a4 {[%clk 0:01:38]} 30. g3 {[%clk 0:01:21]}  axb3 {[%clk 0:01:18]} 31. Qxb3 {[%clk 0:01:20]}  Ra4 {[%clk 0:01:18]} 32. Qc3 {[%clk 0:01:06]}  Rc4 {[%clk 0:01:09]} 33. Re1 {[%clk 0:00:55]}  Rd1+ {[%clk 0:01:00]} 34. Rxd1 {[%clk 0:00:50]}  Rxc3 {[%clk 0:01:00]} 35. Rc1 {[%clk 0:00:48]}  Rb3+ {[%clk 0:00:58]} 36. Ka2 {[%clk 0:00:47]}  Qa4# {[%clk 0:00:58]} 0-1


[Site "https://www.chess.com"]

[Event "Titled Tuesday Blitz March 22 Late 2022"]
[White "Martin Duque, Jesus"]
[Black "Fernandez Siles, Luis"]
[WhiteFideId "2208954"]
[BlackFideId "2209420"]
[WhiteElo "2243"]
[BlackElo "2212"]
[Result "0-1"]
[Round "01"]
[TimeControl "180+1"]
[Date "2022.03.22"]
[WhiteClock "0:00:13"]
[BlackClock "0:00:21"]

1. Nf3 {[%clk 0:02:47]}  Nf6 {[%clk 0:02:56]} 2. b3 {[%clk 0:02:40]}  g6 {[%clk 0:02:56]} 3. Bb2 {[%clk 0:02:40]}  Bg7 {[%clk 0:02:56]} 4. g3 {[%clk 0:02:39]}  O-O {[%clk 0:02:56]} 5. Bg2 {[%clk 0:02:39]}  d5 {[%clk 0:02:55]} 6. c4 {[%clk 0:02:38]}  c5 {[%clk 0:02:49]} 7. cxd5 {[%clk 0:02:38]}  Qxd5 {[%clk 0:02:48]} 8. Nc3 {[%clk 0:02:37]}  Qh5 {[%clk 0:02:47]} 9. h3 {[%clk 0:02:37]}  Ne4 {[%clk 0:02:34]} 10. g4 {[%clk 0:02:02]}  Nxc3 {[%clk 0:02:31]} 11. dxc3 {[%clk 0:01:45]}  Qh6 {[%clk 0:02:27]} 12. Qc2 {[%clk 0:01:30]}  Qf4 {[%clk 0:02:17]} 13. e3 {[%clk 0:00:51]}  Qc7 {[%clk 0:02:12]} 14. c4 {[%clk 0:00:49]}  Nc6 {[%clk 0:02:04]} 15. Bxg7 {[%clk 0:00:49]}  Kxg7 {[%clk 0:02:05]} 16. O-O-O {[%clk 0:00:49]}  a5 {[%clk 0:01:56]} 17. a4 {[%clk 0:00:47]}  Be6 {[%clk 0:01:34]} 18. Kb2 {[%clk 0:00:47]}  f6 {[%clk 0:01:26]} 19. Qc3 {[%clk 0:00:47]}  Rfd8 {[%clk 0:01:14]} 20. Ng5 {[%clk 0:00:45]}  Bg8 {[%clk 0:01:12]} 21. Ne4 {[%clk 0:00:44]}  Rxd1 {[%clk 0:00:59]} 22. Rxd1 {[%clk 0:00:43]}  Rd8 {[%clk 0:00:59]} 23. Rxd8 {[%clk 0:00:41]}  Nxd8 {[%clk 0:01:00]} 24. f4 {[%clk 0:00:39]}  b6 {[%clk 0:00:59]} 25. g5 {[%clk 0:00:38]}  Qc6 {[%clk 0:00:52]} 26. f5 {[%clk 0:00:21]}  Nf7 {[%clk 0:00:49]} 27. Nxf6 {[%clk 0:00:18]}  Qxg2+ {[%clk 0:00:47]} 28. Ka3 {[%clk 0:00:17]}  Nxg5 {[%clk 0:00:26]} 29. Nh5+ {[%clk 0:00:13]}  Kh6 {[%clk 0:00:26]} 30. Nf4 {[%clk 0:00:11]}  Qg1 {[%clk 0:00:23]} 31. h4 {[%clk 0:00:10]}  Ne4 {[%clk 0:00:22]} 32. Qb2 {[%clk 0:00:07]}  Qd1 {[%clk 0:00:20]} 33. Qg2 {[%clk 0:00:05]}  Qa1+ {[%clk 0:00:19]} 34. Qa2 {[%clk 0:00:06]}  Qxa2+ {[%clk 0:00:20]} 35. Kxa2 {[%clk 0:00:07]}  Nc3+ {[%clk 0:00:20]} 36. Kb2 {[%clk 0:00:06]}  Nd1+ {[%clk 0:00:21]} 37. Kc1 {[%clk 0:00:06]}  Nxe3 {[%clk 0:00:22]} 38. fxg6 {[%clk 0:00:06]}  hxg6 {[%clk 0:00:22]} 39. Kd2 {[%clk 0:00:05]}  Nf5 {[%clk 0:00:22]} 40. Nd3 {[%clk 0:00:03]}  Nxh4 {[%clk 0:00:18]} 41. Ne5 {[%clk 0:00:04]}  Be6 {[%clk 0:00:16]} 42. Ke3 {[%clk 0:00:04]}  g5 {[%clk 0:00:16]} 43. Ke4 {[%clk 0:00:04]}  Bf5+ {[%clk 0:00:16]} 44. Ke3 {[%clk 0:00:05]}  Bc2 {[%clk 0:00:15]} 45. Nc6 {[%clk 0:00:06]}  Bxb3 {[%clk 0:00:16]} 46. Nxe7 {[%clk 0:00:06]}  Bxc4 {[%clk 0:00:15]} 47. Nc8 {[%clk 0:00:07]}  Bb3 {[%clk 0:00:15]} 48. Nxb6 {[%clk 0:00:08]}  c4 {[%clk 0:00:15]} 49. Kd4 {[%clk 0:00:07]}  g4 {[%clk 0:00:16]} 50. Nd5 {[%clk 0:00:07]}  g3 {[%clk 0:00:16]} 51. Ne3 {[%clk 0:00:07]}  g2 {[%clk 0:00:16]} 52. Nxg2 {[%clk 0:00:07]}  Nxg2 {[%clk 0:00:17]} 53. Kc3 {[%clk 0:00:07]}  Nf4 {[%clk 0:00:15]} 54. Kb2 {[%clk 0:00:08]}  Nd5 {[%clk 0:00:15]} 55. Ka3 {[%clk 0:00:08]}  Kg5 {[%clk 0:00:16]} 56. Kb2 {[%clk 0:00:09]}  Kf4 {[%clk 0:00:17]} 57. Ka3 {[%clk 0:00:10]}  Ke3 {[%clk 0:00:18]} 58. Kb2 {[%clk 0:00:10]}  Kd4 {[%clk 0:00:18]} 59. Ka3 {[%clk 0:00:11]}  Kd3 {[%clk 0:00:19]} 60. Kb2 {[%clk 0:00:12]}  Kd2 {[%clk 0:00:20]} 61. Ka3 {[%clk 0:00:12]}  Ne3 {[%clk 0:00:20]} 62. Kb2 {[%clk 0:00:13]}  Ba2 {[%clk 0:00:21]} 63. Ka3 {[%clk 0:00:14]}  c3 {[%clk 0:00:21]} 64. Kxa2 {[%clk 0:00:13]}  c2 {[%clk 0:00:22]} 65. Kb3 {[%clk 0:00:12]}  c1=Q {[%clk 0:00:22]} 66. Ka2 {[%clk 0:00:13]}  Qc4+ {[%clk 0:00:22]} 67. Ka3 {[%clk 0:00:13]}  Qb4+ {[%clk 0:00:22]} 68. Ka2 {[%clk 0:00:13]}  Kc2 {[%clk 0:00:21]} 0-1


[Site "https://www.chess.com"]

[Event "Titled Tuesday Blitz March 22 Late 2022"]
[White "Muetsch, Annmarie"]
[Black "Mekhitarian, Krikor Sevag"]
[WhiteFideId "12971367"]
[BlackFideId "2107660"]
[WhiteElo "2249"]
[BlackElo "2598"]
[Result "0-1"]
[Round "01"]
[TimeControl "180+1"]
[Date "2022.03.22"]
[WhiteClock "0:00:58"]
[BlackClock "0:00:59"]

1. e4 {[%clk 0:02:57]}  c5 {[%clk 0:02:59]} 2. Nf3 {[%clk 0:02:53]}  e6 {[%clk 0:02:53]} 3. d4 {[%clk 0:02:51]}  cxd4 {[%clk 0:02:53]} 4. Nxd4 {[%clk 0:02:51]}  Nc6 {[%clk 0:02:53]} 5. Nc3 {[%clk 0:02:46]}  a6 {[%clk 0:02:53]} 6. Be3 {[%clk 0:02:42]}  Nf6 {[%clk 0:02:51]} 7. a3 {[%clk 0:02:41]}  d5 {[%clk 0:02:45]} 8. exd5 {[%clk 0:02:34]}  Nxd5 {[%clk 0:02:46]} 9. Nxd5 {[%clk 0:02:32]}  Qxd5 {[%clk 0:02:45]} 10. Nf3 {[%clk 0:02:26]}  Qxd1+ {[%clk 0:02:25]} 11. Rxd1 {[%clk 0:02:27]}  e5 {[%clk 0:02:20]} 12. Bc4 {[%clk 0:02:20]}  f6 {[%clk 0:02:20]} 13. h3 {[%clk 0:02:16]}  Be7 {[%clk 0:02:19]} 14. g4 {[%clk 0:02:03]}  h5 {[%clk 0:01:56]} 15. g5 {[%clk 0:01:58]}  h4 {[%clk 0:01:56]} 16. g6 {[%clk 0:01:51]}  Bf5 {[%clk 0:01:56]} 17. Bf7+ {[%clk 0:01:47]}  Kf8 {[%clk 0:01:55]} 18. c3 {[%clk 0:01:42]}  Nd8 {[%clk 0:01:48]} 19. Bd5 {[%clk 0:01:17]}  Bxg6 {[%clk 0:01:46]} 20. Bb6 {[%clk 0:01:14]}  Nc6 {[%clk 0:01:10]} 21. Ke2 {[%clk 0:01:08]}  Bf7 {[%clk 0:01:00]} 22. Bxf7 {[%clk 0:01:05]}  Kxf7 {[%clk 0:01:00]} 23. Rd7 {[%clk 0:01:04]}  Ke6 {[%clk 0:00:58]} 24. Rxb7 {[%clk 0:01:03]}  Rab8 {[%clk 0:00:58]} 25. Rxb8 {[%clk 0:00:58]}  Rxb8 {[%clk 0:00:59]} 0-1


[Site "https://www.chess.com"]

[Event "Titled Tuesday Blitz March 22 Late 2022"]
[White "Niemann, Hans Moke"]
[Black "Godzwon, Iwo"]
[WhiteFideId "2093596"]
[BlackFideId "21802483"]
[WhiteElo "2632"]
[BlackElo "2201"]
[Result "1-0"]
[Round "01"]
[TimeControl "180+1"]
[Date "2022.03.22"]
[WhiteClock "0:00:56"]
[BlackClock "0:00:12"]

1. d4 {[%clk 0:03:00]}  Nf6 {[%clk 0:02:58]} 2. Nc3 {[%clk 0:02:59]}  d5 {[%clk 0:02:55]} 3. Bf4 {[%clk 0:02:58]}  e6 {[%clk 0:02:50]} 4. Nb5 {[%clk 0:02:56]}  Na6 {[%clk 0:02:50]} 5. e3 {[%clk 0:02:40]}  c6 {[%clk 0:02:41]} 6. Nc3 {[%clk 0:02:40]}  Bd6 {[%clk 0:02:38]} 7. Bxa6 {[%clk 0:02:38]}  bxa6 {[%clk 0:02:37]} 8. Nf3 {[%clk 0:02:38]}  c5 {[%clk 0:02:32]} 9. Bxd6 {[%clk 0:02:33]}  Qxd6 {[%clk 0:02:33]} 10. O-O {[%clk 0:02:33]}  O-O {[%clk 0:02:32]} 11. Na4 {[%clk 0:02:27]}  cxd4 {[%clk 0:01:55]} 12. exd4 {[%clk 0:02:27]}  Bd7 {[%clk 0:01:53]} 13. Nc5 {[%clk 0:02:06]}  Rab8 {[%clk 0:01:53]} 14. Rb1 {[%clk 0:02:03]}  Rfc8 {[%clk 0:01:46]} 15. Ne5 {[%clk 0:02:01]}  Be8 {[%clk 0:01:35]} 16. Re1 {[%clk 0:02:00]}  a5 {[%clk 0:01:26]} 17. c3 {[%clk 0:01:48]}  Rb6 {[%clk 0:01:15]} 18. Qc2 {[%clk 0:01:39]}  Rcb8 {[%clk 0:01:15]} 19. b3 {[%clk 0:01:38]}  Rc8 {[%clk 0:01:12]} 20. Rbd1 {[%clk 0:01:36]}  Rbb8 {[%clk 0:01:01]} 21. h4 {[%clk 0:01:32]}  a4 {[%clk 0:01:00]} 22. b4 {[%clk 0:01:32]}  Qb6 {[%clk 0:00:58]} 23. a3 {[%clk 0:01:31]}  Bb5 {[%clk 0:00:53]} 24. f3 {[%clk 0:01:29]}  Rc7 {[%clk 0:00:45]} 25. Qd2 {[%clk 0:01:28]}  Ne8 {[%clk 0:00:45]} 26. h5 {[%clk 0:01:27]}  h6 {[%clk 0:00:44]} 27. g4 {[%clk 0:01:27]}  Nd6 {[%clk 0:00:44]} 28. Qf4 {[%clk 0:01:26]}  Rf8 {[%clk 0:00:43]} 29. Kh2 {[%clk 0:01:23]}  Be8 {[%clk 0:00:43]} 30. Qg3 {[%clk 0:01:17]}  Nb5 {[%clk 0:00:43]} 31. f4 {[%clk 0:01:14]}  Nxa3 {[%clk 0:00:41]} 32. g5 {[%clk 0:01:15]}  hxg5 {[%clk 0:00:41]} 33. fxg5 {[%clk 0:01:15]}  Nc4 {[%clk 0:00:37]} 34. Ng4 {[%clk 0:01:10]}  Qd6 {[%clk 0:00:36]} 35. Re5 {[%clk 0:01:09]}  Nxe5 {[%clk 0:00:34]} 36. dxe5 {[%clk 0:01:10]}  Qe7 {[%clk 0:00:34]} 37. Nf6+ {[%clk 0:01:09]}  Kh8 {[%clk 0:00:35]} 38. Qd3 {[%clk 0:01:09]}  g6 {[%clk 0:00:30]} 39. hxg6 {[%clk 0:01:00]}  fxg6 {[%clk 0:00:30]} 40. Kg2 {[%clk 0:00:56]}  Kg7 {[%clk 0:00:15]} 41. Rh1 {[%clk 0:00:56]}  Rh8 {[%clk 0:00:12]} 42. Rxh8 {[%clk 0:00:55]}  Kxh8 {[%clk 0:00:12]} 43. Qh3+ {[%clk 0:00:56]} 1-0


[Site "https://www.chess.com"]

[Event "Titled Tuesday Blitz March 22 Late 2022"]
[White "Papp, Levente"]
[Black "P., Komal Kishore"]
[WhiteFideId "751243"]
[BlackFideId "5016703"]
[WhiteElo "2308"]
[BlackElo "2074"]
[Result "1-0"]
[Round "01"]
[TimeControl "180+1"]
[Date "2022.03.22"]
[WhiteClock "0:00:21"]
[BlackClock "0:00:02"]

1. c4 {[%clk 0:03:00]}  c6 {[%clk 0:02:58]} 2. d4 {[%clk 0:02:59]}  d5 {[%clk 0:02:58]} 3. Nf3 {[%clk 0:02:59]}  Nf6 {[%clk 0:02:58]} 4. Nc3 {[%clk 0:02:59]}  dxc4 {[%clk 0:02:58]} 5. a4 {[%clk 0:02:59]}  Bf5 {[%clk 0:02:57]} 6. Ne5 {[%clk 0:02:58]}  Nbd7 {[%clk 0:02:54]} 7. Nxc4 {[%clk 0:02:58]}  Nb6 {[%clk 0:02:53]} 8. Ne5 {[%clk 0:02:58]}  Nfd7 {[%clk 0:02:45]} 9. Nxd7 {[%clk 0:02:51]}  Nxd7 {[%clk 0:02:42]} 10. e4 {[%clk 0:02:50]}  Bg6 {[%clk 0:02:42]} 11. Be3 {[%clk 0:02:36]}  e6 {[%clk 0:02:39]} 12. Qb3 {[%clk 0:02:30]}  Qb6 {[%clk 0:02:33]} 13. Qc4 {[%clk 0:02:19]}  Qxb2 {[%clk 0:01:53]} 14. Rb1 {[%clk 0:02:19]}  Qa3 {[%clk 0:01:52]} 15. Rxb7 {[%clk 0:02:16]}  Rc8 {[%clk 0:01:47]} 16. Rb1 {[%clk 0:01:59]}  Nb6 {[%clk 0:01:31]} 17. Qb3 {[%clk 0:01:59]}  Qxb3 {[%clk 0:01:07]} 18. Rxb3 {[%clk 0:02:00]}  Be7 {[%clk 0:01:04]} 19. Ba6 {[%clk 0:01:56]}  Rb8 {[%clk 0:00:59]} 20. O-O {[%clk 0:01:45]}  O-O {[%clk 0:00:50]} 21. Rfb1 {[%clk 0:01:26]}  Rfd8 {[%clk 0:00:33]} 22. a5 {[%clk 0:01:19]}  Nd7 {[%clk 0:00:30]} 23. Rb7 {[%clk 0:00:59]}  c5 {[%clk 0:00:29]} 24. d5 {[%clk 0:00:56]}  Bf6 {[%clk 0:00:24]} 25. Na4 {[%clk 0:00:29]}  Bxe4 {[%clk 0:00:07]} 26. Rxb8 {[%clk 0:00:29]}  Rxb8 {[%clk 0:00:07]} 27. Rxb8+ {[%clk 0:00:29]}  Nxb8 {[%clk 0:00:06]} 28. Nxc5 {[%clk 0:00:27]}  Bxd5 {[%clk 0:00:03]} 29. Bc8 {[%clk 0:00:23]}  Nc6 {[%clk 0:00:03]} 30. a6 {[%clk 0:00:23]}  Kf8 {[%clk 0:00:03]} 31. Nd7+ {[%clk 0:00:20]}  Ke7 {[%clk 0:00:02]} 32. Nxf6 {[%clk 0:00:21]}  gxf6 {[%clk 0:00:03]} 33. Bb7 {[%clk 0:00:21]}  Kd6 {[%clk 0:00:03]} 34. f3 {[%clk 0:00:20]}  Kc7 {[%clk 0:00:03]} 35. Kf2 {[%clk 0:00:20]}  Kb8 {[%clk 0:00:02]} 36. Bc5 {[%clk 0:00:20]}  e5 {[%clk 0:00:02]} 37. Bd6# {[%clk 0:00:21]} 1-0


[Site "https://www.chess.com"]

[Event "Titled Tuesday Blitz March 22 Late 2022"]
[White "Peatman, Carter"]
[Black "Abdrlauf, Elham"]
[WhiteFideId "2096480"]
[BlackFideId "1533533"]
[WhiteElo "2479"]
[BlackElo "2334"]
[Result "0-1"]
[Round "01"]
[TimeControl "180+1"]
[Date "2022.03.22"]
[WhiteClock "0:00:29"]
[BlackClock "0:01:26"]

1. d4 {[%clk 0:02:58]}  Nf6 {[%clk 0:02:59]} 2. Nf3 {[%clk 0:02:57]}  d5 {[%clk 0:02:58]} 3. Bf4 {[%clk 0:02:57]}  c5 {[%clk 0:02:57]} 4. e3 {[%clk 0:02:57]}  Nc6 {[%clk 0:02:57]} 5. Nbd2 {[%clk 0:02:38]}  Bf5 {[%clk 0:02:50]} 6. c3 {[%clk 0:02:37]}  e6 {[%clk 0:02:50]} 7. Be2 {[%clk 0:02:25]}  Bd6 {[%clk 0:02:48]} 8. Bg3 {[%clk 0:02:23]}  O-O {[%clk 0:02:48]} 9. O-O {[%clk 0:02:22]}  c4 {[%clk 0:02:25]} 10. b3 {[%clk 0:01:45]}  b5 {[%clk 0:02:22]} 11. a4 {[%clk 0:01:43]}  Bxg3 {[%clk 0:02:21]} 12. hxg3 {[%clk 0:01:42]}  b4 {[%clk 0:02:14]} 13. bxc4 {[%clk 0:01:22]}  bxc3 {[%clk 0:02:13]} 14. Nb3 {[%clk 0:01:22]}  c2 {[%clk 0:02:02]} 15. Qd2 {[%clk 0:00:59]}  Rb8 {[%clk 0:02:01]} 16. Nc5 {[%clk 0:00:57]}  Nb4 {[%clk 0:01:31]} 17. Nh4 {[%clk 0:00:53]}  dxc4 {[%clk 0:01:30]} 18. Nxf5 {[%clk 0:00:42]}  exf5 {[%clk 0:01:31]} 19. Bxc4 {[%clk 0:00:42]}  Ne4 {[%clk 0:01:32]} 20. Nxe4 {[%clk 0:00:33]}  fxe4 {[%clk 0:01:33]} 21. Bb3 {[%clk 0:00:33]}  Qc7 {[%clk 0:01:26]} 22. Rac1 {[%clk 0:00:32]}  Rfc8 {[%clk 0:01:26]} 23. d5 {[%clk 0:00:29]}  Qc3 {[%clk 0:01:26]} 0-1


[Site "https://www.chess.com"]

[Event "Titled Tuesday Blitz March 22 Late 2022"]
[White "Perera Alfonso, Rene Humberto"]
[Black "Tabatabaei, M. Amin"]
[WhiteFideId "3514722"]
[BlackFideId "12521213"]
[WhiteElo "2313"]
[BlackElo "2544"]
[Result "0-1"]
[Round "01"]
[TimeControl "180+1"]
[Date "2022.03.22"]
[WhiteClock "0:01:35"]
[BlackClock "0:00:49"]

1. e4 {[%clk 0:03:00]}  c6 {[%clk 0:02:48]} 2. d4 {[%clk 0:02:59]}  d5 {[%clk 0:02:01]} 3. Nc3 {[%clk 0:02:59]}  dxe4 {[%clk 0:01:58]} 4. Nxe4 {[%clk 0:03:00]}  Nf6 {[%clk 0:01:59]} 5. Nxf6+ {[%clk 0:02:58]}  exf6 {[%clk 0:02:00]} 6. c3 {[%clk 0:02:58]}  Bd6 {[%clk 0:02:01]} 7. Bd3 {[%clk 0:02:59]}  O-O {[%clk 0:02:02]} 8. Ne2 {[%clk 0:03:00]}  Re8 {[%clk 0:02:02]} 9. Qc2 {[%clk 0:02:59]}  h5 {[%clk 0:02:02]} 10. O-O {[%clk 0:02:58]}  Nd7 {[%clk 0:02:01]} 11. Bf4 {[%clk 0:02:58]}  Qc7 {[%clk 0:01:45]} 12. Bxd6 {[%clk 0:02:56]}  Qxd6 {[%clk 0:01:46]} 13. Rae1 {[%clk 0:02:56]}  h4 {[%clk 0:01:42]} 14. Nf4 {[%clk 0:02:46]}  Rd8 {[%clk 0:01:29]} 15. Qd2 {[%clk 0:02:28]}  Nf8 {[%clk 0:01:29]} 16. h3 {[%clk 0:02:26]}  g6 {[%clk 0:01:28]} 17. Re2 {[%clk 0:02:20]}  Kg7 {[%clk 0:01:23]} 18. Rfe1 {[%clk 0:02:17]}  Bd7 {[%clk 0:01:24]} 19. Bc4 {[%clk 0:02:08]}  Re8 {[%clk 0:01:22]} 20. b4 {[%clk 0:02:05]}  Rxe2 {[%clk 0:01:20]} 21. Rxe2 {[%clk 0:02:06]}  Re8 {[%clk 0:01:21]} 22. Rxe8 {[%clk 0:02:05]}  Bxe8 {[%clk 0:01:22]} 23. Qe3 {[%clk 0:02:05]}  Bd7 {[%clk 0:01:21]} 24. Nd3 {[%clk 0:02:05]}  b6 {[%clk 0:01:18]} 25. Qf4 {[%clk 0:02:05]}  Qxf4 {[%clk 0:01:17]} 26. Nxf4 {[%clk 0:02:06]}  g5 {[%clk 0:01:18]} 27. Nd3 {[%clk 0:02:04]}  Ne6 {[%clk 0:01:18]} 28. a4 {[%clk 0:01:59]}  Nc7 {[%clk 0:01:17]} 29. f3 {[%clk 0:01:56]}  Be6 {[%clk 0:01:17]} 30. Nb2 {[%clk 0:01:50]}  Bxc4 {[%clk 0:01:10]} 31. Nxc4 {[%clk 0:01:51]}  Nd5 {[%clk 0:01:11]} 32. Nd6 {[%clk 0:01:47]}  Nxc3 {[%clk 0:01:11]} 33. a5 {[%clk 0:01:46]}  Nd5 {[%clk 0:01:06]} 34. axb6 {[%clk 0:01:45]}  axb6 {[%clk 0:01:07]} 35. b5 {[%clk 0:01:45]}  cxb5 {[%clk 0:01:06]} 36. Nxb5 {[%clk 0:01:46]}  f5 {[%clk 0:01:06]} 37. Kf2 {[%clk 0:01:46]}  f4 {[%clk 0:01:07]} 38. Ke2 {[%clk 0:01:46]}  Kf6 {[%clk 0:01:02]} 39. Nd6 {[%clk 0:01:46]}  Ke6 {[%clk 0:01:02]} 40. Ne4 {[%clk 0:01:46]}  f6 {[%clk 0:01:02]} 41. Kd3 {[%clk 0:01:39]}  Ne3 {[%clk 0:01:00]} 42. Nd2 {[%clk 0:01:39]}  Nxg2 {[%clk 0:00:54]} 43. Kc4 {[%clk 0:01:40]}  Ne3+ {[%clk 0:00:52]} 44. Kb5 {[%clk 0:01:38]}  f5 {[%clk 0:00:48]} 45. Kxb6 {[%clk 0:01:35]}  Kd5 {[%clk 0:00:47]} 46. Nb3 {[%clk 0:01:35]}  g4 {[%clk 0:00:47]} 47. fxg4 {[%clk 0:01:34]}  fxg4 {[%clk 0:00:48]} 48. hxg4 {[%clk 0:01:35]}  h3 {[%clk 0:00:49]} 0-1


[Site "https://www.chess.com"]

[Event "Titled Tuesday Blitz March 22 Late 2022"]
[White "Perez Torres, Nabi Isaias"]
[Black "Djokic, Mihailo"]
[WhiteFideId "5120373"]
[BlackFideId "976440"]
[WhiteElo "1755"]
[BlackElo "2093"]
[Result "1-0"]
[Round "01"]
[TimeControl "180+1"]
[Date "2022.03.22"]
[WhiteClock "0:00:27"]
[BlackClock "0:01:02"]

1. d4 {[%clk 0:03:00]}  Nf6 {[%clk 0:02:59]} 2. c4 {[%clk 0:03:00]}  e6 {[%clk 0:03:00]} 3. Nf3 {[%clk 0:03:00]}  d5 {[%clk 0:02:58]} 4. e3 {[%clk 0:03:00]}  Bb4+ {[%clk 0:02:58]} 5. Nbd2 {[%clk 0:02:57]}  O-O {[%clk 0:02:57]} 6. a3 {[%clk 0:02:55]}  Be7 {[%clk 0:02:57]} 7. b4 {[%clk 0:02:54]}  b6 {[%clk 0:02:55]} 8. Bd3 {[%clk 0:02:54]}  Bb7 {[%clk 0:02:50]} 9. O-O {[%clk 0:02:50]}  c5 {[%clk 0:02:47]} 10. bxc5 {[%clk 0:02:42]}  bxc5 {[%clk 0:02:47]} 11. Rb1 {[%clk 0:02:43]}  Qc7 {[%clk 0:02:44]} 12. cxd5 {[%clk 0:02:30]}  Nxd5 {[%clk 0:02:38]} 13. Bb2 {[%clk 0:02:17]}  Nd7 {[%clk 0:02:28]} 14. Qc2 {[%clk 0:01:48]}  N7f6 {[%clk 0:02:25]} 15. Rfc1 {[%clk 0:01:43]}  Rfc8 {[%clk 0:02:21]} 16. dxc5 {[%clk 0:01:18]}  Rab8 {[%clk 0:02:02]} 17. Be5 {[%clk 0:01:17]}  Qa5 {[%clk 0:01:55]} 18. Bxb8 {[%clk 0:01:17]}  Bc6 {[%clk 0:01:51]} 19. Bd6 {[%clk 0:01:15]}  Qxa3 {[%clk 0:01:48]} 20. Nc4 {[%clk 0:01:09]}  Qa4 {[%clk 0:01:42]} 21. Qxa4 {[%clk 0:00:55]}  Bxa4 {[%clk 0:01:41]} 22. Rb8 {[%clk 0:00:55]}  Rxb8 {[%clk 0:01:39]} 23. Bxb8 {[%clk 0:00:55]}  Bxc5 {[%clk 0:01:39]} 24. Nb2 {[%clk 0:00:52]}  Ba3 {[%clk 0:01:34]} 25. Rc8+ {[%clk 0:00:52]}  Be8 {[%clk 0:01:34]} 26. Nc4 {[%clk 0:00:52]}  Be7 {[%clk 0:01:30]} 27. Nd6 {[%clk 0:00:50]}  Kf8 {[%clk 0:01:25]} 28. Bb5 {[%clk 0:00:47]}  Nb6 {[%clk 0:01:21]} 29. Rxe8+ {[%clk 0:00:42]}  Nxe8 {[%clk 0:01:21]} 30. Nxe8 {[%clk 0:00:42]}  a6 {[%clk 0:01:17]} 31. Bc6 {[%clk 0:00:41]}  a5 {[%clk 0:01:15]} 32. Nd6 {[%clk 0:00:39]}  a4 {[%clk 0:01:15]} 33. Nd2 {[%clk 0:00:31]}  a3 {[%clk 0:01:15]} 34. Nb3 {[%clk 0:00:31]}  a2 {[%clk 0:01:09]} 35. Ne4 {[%clk 0:00:30]}  Nc4 {[%clk 0:01:08]} 36. Nc3 {[%clk 0:00:28]}  f5 {[%clk 0:01:01]} 37. Nxa2 {[%clk 0:00:27]}  Ne5 {[%clk 0:01:02]} 38. Bf3 {[%clk 0:00:27]}  Kf7 {[%clk 0:01:02]} 39. Bxe5 {[%clk 0:00:27]} 1-0


[Site "https://www.chess.com"]